bitfinex/quotes_BTCUSD_20250115
["timestamp","ask_amount","ask_price","bid_price","bid_amount"]
[1736949920075,1.49471994,99340.0,99339.0,0.302]
[1736949920299,1.49671994,99340.0,99339.0,0.302]
[1736949920505,1.50522194,99340.0,99339.0,0.30379487]
[1736949920713,1.50822194,99340.0,99339.0,0.30379487]
[1736949921116,1.50522194,99340.0,99339.0,0.30379487]
[1736949921749,1.40922194,99340.0,99339.0,0.30379487]
[1736949921954,0.49906592,99340.0,99339.0,0.30379487]
[1736949922159,0.26872892,99340.0,99339.0,0.30379487]
[1736949922379,0.10822692,99340.0,99339.0,0.30379487]
[1736949922596,0.004,99340.0,99339.0,0.32679487]
[1736949922882,0.013,99340.0,99339.0,0.32779487]
[1736949923503,0.201299,99355.0,99339.0,0.32779487]
[1736949923504,0.201297,99356.0,99340.0,0.023]
[1736949923731,0.201297,99356.0,99340.0,0.32499]
[1736949923925,0.40261,99352.0,99340.0,0.32499]
[1736949924133,0.0010049,99351.0,99340.0,0.32499]
[1736949924346,0.20132,99345.0,99340.0,0.32499]
[1736949924604,0.0010049,99344.0,99340.0,0.32499]
[1736949924846,0.402644,99343.0,99340.0,0.30199]
[1736949925069,0.0010049,99342.0,99340.0,0.30199]
[1736949925481,0.201307,99351.0,99341.0,0.023]
[1736949925728,0.15,99356.0,99341.0,0.32499]
[1736949925979,0.0010049,99355.0,99341.0,0.32499]
[1736949926622,0.002,99351.0,99341.0,0.32499]
[1736949926804,0.0010049,99350.0,99341.0,0.32499]
[1736949927204,0.002,99351.0,99341.0,0.32499]
[1736949927411,0.0010049,99353.0,99341.0,0.32499]
[1736949927622,0.0002,99360.0,99353.0,0.0817]
[1736949927831,0.0002,99360.0,99358.0,0.201291]
[1736949928033,0.0002,99360.0,99359.0,0.12823319]
[1736949928241,0.0099729,99379.0,99364.0,0.1]
[1736949928436,0.201221,99394.0,99367.0,0.1]
[1736949928642,0.201221,99394.0,99368.0,0.10422692]
[1736949928855,0.0010049,99393.0,99370.0,0.201267]
[1736949929052,0.0010049,99393.0,99370.0,0.3019]
[1736949929273,0.27060014,99390.0,99370.0,0.3019]
[1736949929474,0.201238,99385.0,99370.0,0.3019]
[1736949929680,0.0010049,99384.0,99371.0,0.023]
[1736949929874,0.0010049,99387.0,99371.0,0.3249]
[1736949930167,0.201217,99395.0,99371.0,0.3249]
[1736949930168,0.2022399,99386.0,99371.0,0.3249]
[1736949930674,0.201228,99390.0,99371.0,0.3019]
[1736949930841,0.2022339,99389.0,99371.0,0.3019]
[1736949931289,0.201217,99395.0,99372.0,0.02400624]
[1736949931489,0.201237,99385.0,99372.0,0.023]
[1736949931610,0.0010049,99384.0,99372.0,0.3249]
[1736949931807,0.00845532,99396.0,99374.0,0.023]
[1736949932034,0.00845532,99396.0,99377.0,0.201252]
[1736949932240,0.0010049,99395.0,99378.0,0.023]
[1736949932416,0.0008552,99386.0,99380.0,0.023]
[1736949932654,0.0008552,99386.0,99380.0,0.32487]
[1736949932856,0.0008552,99386.0,99382.0,0.023]
[1736949933063,0.0008552,99386.0,99382.0,0.32487]
[1736949933263,0.0008552,99386.0,99384.0,0.023]
[1736949933471,0.0008552,99386.0,99384.0,0.32486]
[1736949933620,0.0008552,99386.0,99385.0,0.02731284]
[1736949933829,0.0008552,99386.0,99385.0,0.32917284]
[1736949935088,0.0018552,99386.0,99385.0,0.33217284]
[1736949935583,0.0008552,99386.0,99385.0,0.33217284]
[1736949935756,0.0008552,99386.0,99385.0,0.33717284]
[1736949935960,0.0008552,99386.0,99385.0,0.33217284]
[1736949936162,0.0008552,99386.0,99385.0,0.32917284]
[1736949936368,0.0018552,99386.0,99385.0,0.33517284]
[1736949937181,0.0018552,99386.0,99385.0,0.51719976]
[1736949937559,0.0018552,99386.0,99385.0,0.41597284]
[1736949938077,0.0018552,99386.0,99385.0,0.41297284]
[1736949938469,0.0018552,99386.0,99385.0,0.41597284]
[1736949939879,0.0018552,99386.0,99385.0,0.31407607]
[1736949940573,0.0018552,99386.0,99385.0,0.33707607]
[1736949944670,0.2030902,99386.0,99385.0,0.31407607]
[1736949945255,0.0018552,99386.0,99385.0,0.33707607]
[1736949945688,0.0008552,99386.0,99385.0,0.33107607]
[1736949945977,0.0018552,99386.0,99385.0,0.33607607]
[1736949946108,0.0018552,99386.0,99385.0,0.33107607]
[1736949947522,0.0018552,99386.0,99385.0,0.32907607]
[1736949947718,0.0008552,99386.0,99385.0,0.32807607]
[1736949947924,0.0008552,99386.0,99385.0,0.33107607]
[1736949948348,0.0018552,99386.0,99385.0,0.33307607]
[1736949948719,0.0008552,99386.0,99385.0,0.33107607]
[1736949949396,0.0018552,99386.0,99385.0,0.33407607]
[1736949950594,0.0008552,99386.0,99385.0,0.32807607]
[1736949950778,0.0008552,99386.0,99385.0,0.33107607]
[1736949950985,0.2030902,99386.0,99385.0,0.33707607]
[1736949951185,0.2030902,99386.0,99385.0,0.31107607]
[1736949951498,0.2030902,99386.0,99385.0,0.31407607]
[1736949951499,0.0018552,99386.0,99385.0,0.31407607]
[1736949951933,0.0018552,99386.0,99385.0,0.33707607]
[1736949952940,0.01763906,99386.0,99385.0,0.33707607]
[1736949953169,0.0018552,99386.0,99385.0,0.33707607]
[1736949953379,0.2030902,99386.0,99385.0,0.33707607]
[1736949953636,0.0018552,99386.0,99385.0,0.33707607]
[1736949955082,0.0018552,99386.0,99385.0,0.33386]
[1736949955464,0.0018552,99386.0,99385.0,0.33686196]
[1736949956642,0.000857,99399.0,99386.0,0.023]
[1736949956832,0.000857,99399.0,99386.0,0.32485]
[1736949957023,0.201219,99394.0,99388.0,0.023]
[1736949957224,0.201221,99393.0,99388.0,0.32485]
[1736949957452,0.000857,99399.0,99389.0,0.00298826]
[1736949957660,0.201215,99397.0,99389.0,0.00298826]
[1736949957857,0.201226,99391.0,99389.0,0.31764826]
[1736949958267,0.201211,99398.0,99389.0,0.31764826]
[1736949958473,0.000857,99399.0,99389.0,0.31764826]
[1736949958668,0.000857,99399.0,99389.0,0.32264826]
[1736949959413,0.000857,99399.0,99391.0,0.0751]
[1736949959591,0.000857,99399.0,99395.0,0.224217]
[1736949959795,0.000857,99399.0,99395.0,0.64308392]
[1736949959997,0.000857,99399.0,99395.0,0.74586724]
[1736949960528,0.000857,99399.0,99398.0,0.1]
[1736949960819,0.000857,99399.0,99398.0,0.79286271]
[1736949961019,0.000857,99399.0,99398.0,0.86972068]
[1736949961464,0.000857,99399.0,99398.0,0.88772369]
[1736949962450,0.000857,99399.0,99398.0,0.86972068]
[1736949963487,0.05,99400.0,99399.0,0.373]
[1736949963645,0.05,99400.0,99399.0,0.99306592]
[1736949964056,0.0008546,99420.0,99419.0,0.201168]
[1736949964258,0.0008546,99420.0,99419.0,0.64397056]
[1736949964432,0.0008546,99420.0,99419.0,0.64565479]
[1736949964654,0.0008546,99420.0,99419.0,0.92835479]
[1736949964851,0.0008546,99420.0,99419.0,1.07835479]
[1736949965075,0.0008568,99427.0,99421.0,0.35]
[1736949965271,0.0008568,99427.0,99421.0,0.79178692]
[1736949965477,0.0008568,99427.0,99421.0,0.79483577]
[1736949965936,0.0008568,99427.0,99421.0,0.69483577]
[1736949966144,0.00097983,99422.0,99421.0,0.79483577]
[1736949967284,0.00197983,99422.0,99421.0,0.79983577]
[1736949967659,0.00297983,99422.0,99421.0,0.80883577]
[1736949967864,0.00297983,99422.0,99421.0,0.81739577]
[1736949968032,0.00197983,99422.0,99421.0,0.80839577]
[1736949968245,0.0008552,99442.0,99441.0,0.201124]
[1736949968490,0.201039,99483.0,99460.0,0.201084]
[1736949968689,0.01019788,99484.0,99460.0,0.31444]
[1736949968906,0.17527571,99480.0,99461.0,0.00299649]
[1736949969081,0.17527571,99471.0,99461.0,0.31743649]
[1736949969302,0.10422692,99470.0,99461.0,0.31743649]
[1736949969503,0.10422692,99470.0,99461.0,0.31832522]
[1736949969504,0.15,99463.0,99461.0,0.31832522]
[1736949969707,0.45530792,99462.0,99461.0,0.31832522]
[1736949969907,0.62280692,99462.0,99461.0,0.31721279]
[1736949970117,0.45530792,99462.0,99461.0,0.31721279]
[1736949970798,0.351081,99462.0,99461.0,0.31721279]
[1736949971122,0.35899072,99462.0,99461.0,0.31821279]
[1736949971333,0.16090972,99462.0,99461.0,0.31821279]
[1736949971535,0.15290972,99462.0,99461.0,0.31721279]
[1736949972526,0.14990972,99462.0,99461.0,0.31721279]
[1736949972728,0.201073,99467.0,99461.0,0.31721279]
[1736949972729,0.20201441,99486.0,99461.0,0.42143971]
[1736949972985,0.20201441,99486.0,99461.0,0.31721279]
[1736949972986,0.001,99462.0,99461.0,0.31721279]
[1736949973592,0.15,99476.0,99461.0,0.31721279]
[1736949973778,0.201071,99467.0,99461.0,0.31721279]
[1736949973983,0.17527571,99471.0,99461.0,0.31444]
[1736949974372,0.201076,99465.0,99462.0,0.00275482]
[1736949974500,0.402152,99465.0,99462.0,0.31719482]
[1736949974907,0.351079,99463.0,99462.0,0.31719482]
[1736949975092,0.351079,99463.0,99462.0,0.31444]
[1736949975293,0.351079,99463.0,99462.0,0.31719482]
[1736949975940,0.01577319,99463.0,99462.0,0.31719482]
[1736949976148,0.15,99469.0,99462.0,0.31719482]
[1736949976354,0.15,99469.0,99462.0,0.31300265]
[1736949976632,0.15,99469.0,99463.0,0.00275789]
[1736949976833,0.201055,99476.0,99463.0,0.31862789]
[1736949976834,0.007,99465.0,99463.0,0.31862789]
[1736949977035,0.00098041,99486.0,99463.0,0.31862789]
[1736949977270,0.201046,99480.0,99463.0,0.31862789]
[1736949977458,0.001,99469.0,99466.0,0.201073]
[1736949977661,0.00098041,99486.0,99480.0,0.201043]
[1736949977869,0.00098041,99486.0,99482.0,0.201041]
[1736949978106,0.00098041,99486.0,99484.0,0.201037]
[1736949978304,0.00098041,99486.0,99484.0,0.31581]
[1736949978861,0.00098041,99486.0,99485.0,0.00273602]
[1736949979063,0.00098041,99486.0,99485.0,0.31853602]
[1736949979272,0.00098041,99486.0,99485.0,0.31851635]
[1736949980222,0.00098041,99486.0,99485.0,0.31951635]
[1736949980425,0.04136968,99486.0,99485.0,0.31951635]
[1736949980631,0.04136968,99486.0,99485.0,0.31851635]
[1736949980632,0.1455966,99486.0,99485.0,0.31851635]
[1736949980885,0.31136621,99486.0,99485.0,0.31851635]
[1736949981116,0.31136621,99486.0,99485.0,0.32451635]
[1736949981117,0.2955966,99486.0,99485.0,0.32451635]
[1736949981299,2.43679367,99486.0,99485.0,0.17927557]
[1736949981502,1.28820367,99486.0,99485.0,0.17927557]
[1736949981700,0.70788367,99486.0,99485.0,0.17655922]
[1736949981873,0.5003054,99486.0,99485.0,0.17655922]
[1736949982198,1.0924784,99486.0,99485.0,0.17355922]
[1736949982403,0.7324154,99486.0,99485.0,0.17355922]
[1736949982606,0.7324154,99486.0,99485.0,0.17455922]
[1736949982985,0.7324154,99486.0,99485.0,0.17355922]
[1736949983195,0.83664232,99486.0,99485.0,0.17355922]
[1736949983499,0.84164232,99486.0,99485.0,0.17455922]
[1736949983700,0.84114232,99486.0,99485.0,0.17455922]
[1736949983902,0.83614232,99486.0,99485.0,0.17355922]
[1736949984081,0.83472253,99486.0,99485.0,0.16905922]
[1736949984297,0.83872253,99486.0,99485.0,0.16905922]
[1736949984703,0.74349561,99486.0,99485.0,0.17005922]
[1736949984929,0.73449561,99486.0,99485.0,0.16905922]
[1736949985311,0.74349561,99486.0,99485.0,0.17005922]
[1736949985517,0.73449561,99486.0,99485.0,0.16905922]
[1736949985918,0.73049561,99486.0,99485.0,0.16905922]
[1736949986129,0.83472253,99486.0,99485.0,0.16905922]
[1736949986336,0.83972253,99486.0,99485.0,0.16905922]
[1736949986798,0.83972253,99486.0,99485.0,0.17005922]
[1736949986799,0.53949561,99486.0,99485.0,0.17005922]
[1736949987187,0.64349561,99486.0,99485.0,0.17005922]
[1736949987552,0.55926781,99486.0,99485.0,0.17005922]
[1736949987765,0.64349561,99486.0,99485.0,0.17005922]
[1736949988073,0.74349561,99486.0,99485.0,0.08964322]
[1736949988245,0.74772253,99486.0,99485.0,0.08964322]
[1736949988455,0.64772253,99486.0,99485.0,0.08964322]
[1736949988611,0.64349561,99486.0,99485.0,0.08964322]
[1736949988807,0.74349561,99486.0,99485.0,0.02933122]
[1736949989021,0.74349561,99486.0,99485.0,2.2e-07]
[1736949989217,0.59955961,99486.0,99485.0,2.2e-07]
[1736949990053,0.49955961,99486.0,99485.0,2.2e-07]
[1736949990290,0.5006628,99486.0,99485.0,2.2e-07]
[1736949990436,0.6006628,99486.0,99485.0,2.2e-07]
[1736949991011,0.12655961,99486.0,99485.0,2.2e-07]
[1736949991221,0.02327207,99486.0,99485.0,2.2e-07]
[1736949992455,0.02412617,99486.0,99485.0,2.2e-07]
[1736949992661,0.0138541,99486.0,99485.0,2.2e-07]
[1736949993063,0.0008541,99486.0,99465.0,0.0827]
[1736949993242,0.201058,99474.0,99465.0,0.0827]
[1736949993441,0.201052,99477.0,99466.0,0.00269206]
[1736949993675,0.17527571,99480.0,99465.0,0.0827]
[1736949993676,0.0048541,99486.0,99467.0,0.10422692]
[1736949993883,0.201035,99485.0,99467.0,0.30529792]
[1736949994091,0.17527571,99480.0,99468.0,0.00269043]
[1736949994511,0.0008541,99486.0,99469.0,0.10422692]
[1736949994713,0.0008541,99486.0,99469.0,0.40582692]
[1736949994920,0.0008541,99486.0,99469.0,0.40851724]
[1736949995302,0.17527571,99480.0,99469.0,0.30429032]
[1736949995552,0.201047,99479.0,99469.0,0.30429032]
[1736949995975,0.201049,99478.0,99469.0,0.30429032]
[1736949996182,0.17527571,99480.0,99469.0,0.30429032]
[1736949996183,0.35055142,99480.0,99469.0,0.30429032]
[1736949996410,0.201061,99472.0,99469.0,0.30429032]
[1736949996614,0.201065,99470.0,99469.0,0.30429032]
[1736949996747,0.201061,99472.0,99469.0,0.30429032]
[1736949996950,0.17527571,99480.0,99469.0,0.3016]
[1736949997150,0.201047,99479.0,99469.0,0.3016]
[1736949997352,0.17527571,99480.0,99470.0,0.00269159]
[1736949997553,0.17527571,99480.0,99470.0,0.3016]
[1736949997758,0.17527571,99480.0,99471.0,0.00269148]
[1736949997963,0.0008541,99486.0,99471.0,0.50535348]
[1736949998168,0.0008541,99486.0,99473.0,0.0765]
[1736949998360,0.0008541,99486.0,99473.0,0.37809]
[1736949998646,0.17527571,99483.0,99474.0,0.00269116]
[1736949998849,0.17527571,99483.0,99474.0,0.30428116]
[1736949999583,4e-05,99480.0,99474.0,0.30428116]
[1736950000470,4e-05,99480.0,99474.0,0.30828116]
[1736950000689,4e-05,99480.0,99474.0,0.30728116]
[1736950000962,4e-05,99480.0,99474.0,0.30828116]
[1736950001171,4e-05,99480.0,99474.0,0.30528116]
[1736950001523,0.01580881,99480.0,99474.0,0.30528116]
[1736950001729,0.01580881,99480.0,99474.0,0.30628116]
[1736950002485,0.201051,99477.0,99474.0,0.30628116]
[1736950002687,0.01584881,99480.0,99474.0,0.30528116]
[1736950002831,0.01588881,99480.0,99474.0,0.30759]
[1736950003035,0.01588881,99480.0,99475.0,0.00267962]
[1736950003237,0.01592881,99480.0,99475.0,0.50531262]
[1736950003577,0.00016,99480.0,99475.0,0.30425962]
[1736950003778,0.0002,99480.0,99475.0,0.30425962]
[1736950003956,0.00024,99480.0,99475.0,0.30425962]
[1736950004138,0.00024,99480.0,99475.0,0.31025962]
[1736950004341,0.00028,99480.0,99475.0,0.30725962]
[1736950004750,0.00032,99480.0,99475.0,0.30725962]
[1736950004974,0.201047,99479.0,99475.0,0.30425962]
[1736950005180,0.00036,99480.0,99475.0,0.30425962]
[1736950005379,0.0004,99480.0,99475.0,0.30425962]
[1736950005696,0.201047,99479.0,99475.0,0.31125962]
[1736950005899,0.201047,99479.0,99475.0,0.30425962]
[1736950006121,0.44243401,99479.0,99475.0,0.30425962]
[1736950006356,0.44243401,99479.0,99475.0,0.30825962]
[1736950006782,0.44243401,99479.0,99475.0,0.30425962]
[1736950007019,0.402096,99479.0,99475.0,0.30425962]
[1736950007155,0.404096,99479.0,99475.0,0.30425962]
[1736950007356,0.402096,99479.0,99475.0,0.30425962]
[1736950007545,0.405096,99479.0,99475.0,0.30425962]
[1736950008380,0.15,99476.0,99475.0,0.30425962]
[1736950008582,0.35188524,99476.0,99475.0,0.30425962]
[1736950010123,0.35188524,99476.0,99462.0,8e-07]
[1736950010124,0.528255,99475.0,99462.0,8e-07]
[1736950010334,0.201142,99432.0,99406.0,0.00100584]
[1736950010535,0.20114,99433.0,99412.0,0.201182]
[1736950010741,0.17527571,99430.0,99413.0,0.20118]
[1736950010953,0.17527571,99430.0,99413.0,0.30177]
[1736950011208,0.201173,99417.0,99413.0,0.30177]
[1736950011624,0.402347,99417.0,99413.0,0.30177]
[1736950011838,0.402347,99417.0,99413.0,0.3022679]
[1736950012045,0.15,99414.0,99413.0,0.3022679]
[1736950012251,0.25422692,99414.0,99413.0,0.3022679]
[1736950012463,0.34000191,99414.0,99413.0,0.3022679]
[1736950012668,0.61983591,99414.0,99413.0,0.3022679]
[1736950012879,0.74584268,99414.0,99413.0,0.2821499]
[1736950013135,0.74584268,99414.0,99413.0,0.2851499]
[1736950013355,0.71933591,99414.0,99413.0,0.28068492]
[1736950013568,0.71933591,99414.0,99369.0,0.00179319]
[1736950013569,0.301213,99397.0,99369.0,0.00179319]
[1736950013823,0.67467812,99397.0,99396.0,0.00192008]
[1736950014043,0.69002592,99397.0,99396.0,0.00192008]
[1736950014859,0.7058118,99397.0,99396.0,0.00192008]
[1736950015070,0.8558518,99397.0,99396.0,0.00192008]
[1736950015773,0.84006592,99397.0,99396.0,0.00192008]
[1736950015972,0.94629284,99397.0,99396.0,0.0017122]
[1736950016176,0.84629284,99397.0,99396.0,0.0017122]
[1736950016394,0.94629284,99397.0,99396.0,0.0017122]
[1736950016600,0.66870684,99397.0,99396.0,0.0027122]
[1736950016805,1.09423684,99397.0,99396.0,0.0027122]
[1736950017009,0.94103584,99397.0,99396.0,0.0027122]
[1736950017211,0.93680892,99397.0,99396.0,0.0027122]
[1736950017411,0.84687894,99397.0,99396.0,0.0027122]
[1736950017585,0.68010494,99397.0,99396.0,0.0027122]
[1736950018054,0.47454994,99397.0,99396.0,0.0027122]
[1736950018255,0.62739394,99397.0,99396.0,0.0027122]
[1736950018408,0.47454994,99397.0,99396.0,0.0027122]
[1736950018611,0.49033461,99397.0,99396.0,0.0027122]
[1736950018963,0.7437043,99397.0,99396.0,0.0027122]
[1736950019659,2.1078033,99397.0,99396.0,0.0027122]
[1736950019885,2.6086573,99397.0,99396.0,0.0027122]
[1736950020118,0.15,99373.0,99369.0,0.00066798]
[1736950020355,0.551267,99370.0,99369.0,0.00079321]
[1736950020590,0.551267,99370.0,99361.0,0.00012523]
[1736950020591,0.1,99362.0,99361.0,0.00012523]
[1736950020837,1.48307392,99362.0,99361.0,0.00027465]
[1736950021070,1.48307392,99362.0,99361.0,0.00014943]
[1736950021071,1.61035093,99362.0,99361.0,0.00014943]
[1736950021336,0.351328,99340.0,99339.0,0.00179487]
[1736950021617,1.60810992,99340.0,99339.0,0.00194424]
[1736950021823,1.07106408,99340.0,99339.0,0.00194424]
[1736950022259,1.09754818,99340.0,99339.0,0.00194424]
[1736950022682,0.89332126,99340.0,99339.0,0.00194424]
[1736950022897,0.45555492,99340.0,99339.0,0.00194424]
[1736950023104,0.16579269,99340.0,99339.0,0.00194424]
[1736950023518,0.161,99340.0,99339.0,0.00194424]
[1736950023723,0.25622692,99340.0,99339.0,0.00194424]
[1736950023892,0.34456216,99340.0,99339.0,0.00194424]
[1736950024477,0.34460216,99340.0,99339.0,0.00194424]
[1736950025305,0.25426692,99340.0,99339.0,0.00194424]
[1736950025888,0.27871457,99340.0,99339.0,0.00194424]
[1736950026087,0.25426692,99340.0,99339.0,0.00194424]
[1736950026273,0.26226692,99340.0,99339.0,0.00194424]
[1736950026486,0.1658327,99340.0,99339.0,0.00194424]
[1736950026692,0.15004,99340.0,99339.0,0.00194424]
[1736950026885,0.15404,99340.0,99339.0,0.00194424]
[1736950027131,4e-05,99340.0,99339.0,0.00194424]
[1736950027331,4e-05,99340.0,99339.0,0.07124424]
[1736950027562,0.00104,99340.0,99339.0,0.25687116]
[1736950027859,4e-05,99362.0,99350.0,0.201308]
[1736950028049,4e-05,99362.0,99355.0,0.023]
[1736950028407,4e-05,99362.0,99353.0,0.023]
[1736950028816,4e-05,99362.0,99347.0,0.023]
[1736950029032,4e-05,99362.0,99345.0,0.023]
[1736950029243,4e-05,99362.0,99339.0,0.12964424]
[1736950029434,4e-05,99362.0,99347.0,0.201314]
[1736950029620,0.00104,99362.0,99348.0,0.023]
[1736950029821,4e-05,99362.0,99348.0,0.32497]
[1736950030022,4e-05,99362.0,99350.0,0.023]
[1736950031756,0.00104,99362.0,99361.0,0.42915692]
[1736950032610,4e-05,99362.0,99361.0,0.42915692]
[1736950032858,0.00104,99362.0,99361.0,0.30193]
[1736950033048,0.00204,99362.0,99361.0,0.30193]
[1736950033368,0.00104,99362.0,99361.0,0.30193]
[1736950033567,0.00204,99362.0,99361.0,0.30193]
[1736950033727,0.00104,99362.0,99361.0,0.30193]
[1736950033927,4e-05,99362.0,99361.0,0.30193]
[1736950034409,0.00104,99362.0,99361.0,0.30193]
[1736950034608,0.0372711,99362.0,99361.0,0.30193]
[1736950035225,0.00204,99362.0,99361.0,0.30193]
[1736950035941,4e-05,99362.0,99361.0,0.30193]
[1736950036321,0.00104,99362.0,99361.0,0.30193]
[1736950036801,0.00108,99362.0,99361.0,0.30193]
[1736950037019,0.25530692,99362.0,99361.0,0.30193]
[1736950037219,0.35622091,99362.0,99361.0,0.30193]
[1736950037427,0.25530692,99362.0,99361.0,0.30193]
[1736950037848,0.25530692,99362.0,99339.0,0.00194424]
[1736950037849,0.351328,99340.0,99339.0,0.00194424]
[1736950038029,0.45555492,99340.0,99339.0,0.00194424]
[1736950038432,0.45555492,99340.0,99339.0,0.30393424]
[1736950038846,0.47072945,99340.0,99339.0,0.30393424]
[1736950039221,0.45555492,99340.0,99339.0,0.30393424]
[1736950039421,0.48000257,99340.0,99339.0,0.30393424]
[1736950039971,0.58000257,99340.0,99339.0,0.30393424]
[1736950040265,0.61378553,99340.0,99339.0,0.30393424]
[1736950040664,0.61878553,99340.0,99339.0,0.30393424]
[1736950040863,0.71801245,99340.0,99339.0,0.30393424]
[1736950041229,0.15004,99340.0,99339.0,0.30393424]
[1736950041430,0.351368,99340.0,99339.0,0.30393424]
[1736950041677,0.15004,99340.0,99339.0,0.30393424]
[1736950042082,0.25426692,99340.0,99339.0,0.30393424]
[1736950042315,0.26226692,99340.0,99339.0,0.30393424]
[1736950042486,0.32480118,99340.0,99339.0,0.30393424]
[1736950042932,0.32280118,99340.0,99339.0,0.30393424]
[1736950043141,0.32380118,99340.0,99339.0,0.30393424]
[1736950043352,0.42280118,99340.0,99339.0,0.30393424]
[1736950043768,0.98539266,99340.0,99339.0,0.30393424]
[1736950043978,1.08139266,99340.0,99339.0,0.30393424]
[1736950044216,1.03594153,99340.0,99339.0,0.20326924]
[1736950044865,1.05894153,99340.0,99339.0,0.18313624]
[1736950045081,0.1,99316.0,99300.0,0.10674931]
[1736950045289,1.05664153,99340.0,99300.0,0.10674931]
[1736950045290,0.351407,99301.0,99300.0,0.10674931]
[1736950045493,0.45563392,99301.0,99300.0,0.10674931]
[1736950046718,0.46557819,99301.0,99300.0,0.10724747]
[1736950046922,0.47057819,99301.0,99300.0,0.10724747]
[1736950047335,0.46557819,99301.0,99300.0,0.10724747]
[1736950047770,0.56980511,99301.0,99300.0,0.10724747]
[1736950047976,0.56980511,99301.0,99292.0,0.00179298]
[1736950047977,0.35,99297.0,99292.0,0.00179298]
[1736950048188,1.22910892,99297.0,99292.0,0.00179298]
[1736950048396,0.25422692,99297.0,99292.0,0.00179298]
[1736950048586,0.36465792,99297.0,99292.0,0.00179298]
[1736950048796,0.45314943,99297.0,99292.0,0.00179298]
[1736950049111,0.69382943,99297.0,99292.0,0.00179298]
[1736950049291,0.35171843,99297.0,99292.0,0.00179298]
[1736950049499,0.25422692,99297.0,99292.0,0.00179298]
[1736950049712,0.26422692,99297.0,99292.0,0.00179298]
[1736950050067,0.35422692,99297.0,99292.0,0.00179298]
[1736950050267,0.95527592,99297.0,99292.0,0.00179298]
[1736950050477,1.12084192,99297.0,99292.0,0.00179298]
[1736950050686,1.22506884,99297.0,99292.0,0.00179298]
[1736950051283,1.05465884,99297.0,99292.0,0.00179298]
[1736950051483,0.90340784,99297.0,99292.0,0.00179298]
[1736950051929,0.45845384,99297.0,99292.0,0.00179298]
[1736950052153,0.59359084,99297.0,99292.0,0.00179298]
[1736950052354,0.46445384,99297.0,99292.0,0.00179298]
[1736950052555,0.58850284,99297.0,99292.0,0.00179298]
[1736950052760,0.59750284,99297.0,99292.0,0.00179298]
[1736950052912,0.59950284,99297.0,99292.0,0.00179298]
[1736950053292,0.45144,99285.0,99266.0,0.00186613]
[1736950053492,0.73095382,99285.0,99284.0,0.09061105]
[1736950053702,2.36290682,99285.0,99284.0,0.09061105]
[1736950053898,1.57621082,99285.0,99284.0,0.09061105]
[1736950055124,0.77781992,99285.0,99284.0,0.09061105]
[1736950055329,0.46466692,99285.0,99284.0,0.09061105]
[1736950055582,0.45566692,99285.0,99284.0,0.09061105]
[1736950055926,0.75786292,99285.0,99284.0,0.09061105]
[1736950056124,0.69663092,99285.0,99284.0,0.09061105]
[1736950056471,0.66023592,99285.0,99284.0,0.09061105]
[1736950056689,0.35644,99285.0,99284.0,0.09061105]
[1736950056882,0.47061024,99285.0,99284.0,0.09061105]
[1736950057103,0.63545524,99285.0,99284.0,0.09061105]
[1736950057251,0.47161024,99285.0,99284.0,0.09061105]
[1736950057883,0.36738332,99285.0,99284.0,0.09061105]
[1736950058082,0.36242332,99285.0,99284.0,0.09061105]
[1736950058286,0.00804,99285.0,99284.0,0.17081105]
[1736950058654,0.00204,99285.0,99284.0,0.17081105]
[1736950059133,0.00504,99285.0,99284.0,0.17081105]
[1736950059340,4e-05,99285.0,99284.0,0.17081105]
[1736950059579,0.00204,99285.0,99284.0,0.17081105]
[1736950059780,0.04960079,99285.0,99284.0,0.17081105]
[1736950059988,4e-05,99285.0,99284.0,0.17081105]
[1736950060600,0.15004,99285.0,99284.0,0.17081105]
[1736950060788,0.25426692,99285.0,99284.0,0.17081105]
[1736950060994,0.25426692,99285.0,99284.0,0.09061105]
[1736950061202,0.3290504,99285.0,99284.0,0.09061105]
[1736950061375,0.7980054,99285.0,99284.0,0.09061105]
[1736950061594,0.7970054,99285.0,99284.0,0.09061105]
[1736950061819,0.8970054,99285.0,99284.0,0.09061105]
[1736950062017,0.8030054,99285.0,99284.0,0.09061105]
[1736950062221,0.7970054,99285.0,99284.0,0.09061105]
[1736950062544,0.8060054,99285.0,99284.0,0.09061105]
[1736950062749,0.7970054,99285.0,99284.0,0.09061105]
[1736950063264,0.9060054,99285.0,99284.0,0.09061105]
[1736950064132,0.8060054,99285.0,99284.0,0.09061105]
[1736950064365,0.8060054,99285.0,99284.0,0.07732927]
[1736950064366,0.8970054,99285.0,99284.0,0.07732927]
[1736950064774,1.01607692,99285.0,99284.0,0.07732927]
[1736950064978,0.15,99271.0,99269.0,0.11476078]
[1736950065182,1.92882084,99270.0,99269.0,0.11476078]
[1736950065385,1.65704784,99270.0,99269.0,0.11476078]
[1736950065589,1.29546884,99270.0,99269.0,0.11476078]
[1736950065789,0.95328092,99270.0,99269.0,0.11476078]
[1736950065990,0.83140992,99270.0,99269.0,0.11476078]
[1736950066396,0.83140992,99270.0,99269.0,0.11491035]
[1736950066397,0.84040992,99270.0,99269.0,0.11491035]
[1736950066991,0.85035729,99270.0,99269.0,0.11491035]
[1736950067192,0.95458421,99270.0,99269.0,0.11491035]
[1736950067396,0.95658421,99270.0,99269.0,0.11491035]
[1736950067983,0.84335729,99270.0,99269.0,0.11491035]
[1736950068194,0.86135138,99270.0,99269.0,0.11491035]
[1736950068399,0.87035138,99270.0,99269.0,0.11491035]
[1736950068767,0.74406338,99270.0,99269.0,0.11491035]
[1736950068911,0.82304301,99270.0,99269.0,0.11491035]
[1736950069117,0.92726993,99270.0,99269.0,0.11491035]
[1736950069320,1.02726993,99270.0,99269.0,0.11491035]
[1736950069545,1.02926993,99270.0,99269.0,0.11491035]
[1736950070080,0.57361801,99270.0,99269.0,0.11491035]
[1736950070285,1.04101901,99270.0,99269.0,0.11491035]
[1736950070514,1.01281501,99270.0,99269.0,0.11491035]
[1736950070697,0.91281501,99270.0,99269.0,0.11491035]
[1736950070929,0.77681901,99270.0,99269.0,0.11491035]
[1736950071141,0.84694016,99270.0,99269.0,0.11491035]
[1736950071295,0.83794016,99270.0,99269.0,0.11491035]
[1736950071497,0.94294016,99270.0,99269.0,0.11491035]
[1736950071700,0.84294016,99270.0,99269.0,0.11491035]
[1736950072754,0.85194016,99270.0,99269.0,0.11491035]
[1736950072954,0.84694016,99270.0,99269.0,0.11491035]
[1736950073402,0.84894016,99270.0,99269.0,0.11491035]
[1736950073612,0.85746016,99270.0,99269.0,0.11491035]
[1736950073925,1.05546016,99270.0,99269.0,0.01417535]
[1736950074114,0.351503,99254.0,99253.0,0.02925642]